bitfinex/quotes_ETHUSD_20250616
["timestamp","ask_amount","ask_price","bid_price","bid_amount"]
[1750057074286,0.1912,2613.3,2613.1,3.82680382]
[1750057074604,0.1912,2613.3,2613.2,3.82672585]
[1750057074801,0.1912,2613.3,2613.1,3.82680072]
[1750057075605,0.1912,2613.3,2613.0,3.82692131]
[1750057075797,0.1912,2613.3,2613.1,3.82685544]
[1750057077474,0.1912,2613.3,2613.2,3.82672585]
[1750057077675,0.1912,2613.3,2613.1,3.82680743]
[1750057080619,0.1912,2613.3,2613.0,10.45595357]
[1750057080781,0.1912,2613.3,2613.1,3.82687076]
[1750057084322,0.1912,2613.3,2613.0,10.4560141]
[1750057084323,0.8024,2613.0,2612.3,5.66400668]
[1750057084622,10.8024,2612.3,2611.5,3.82909421]
[1750057084826,10.0,2612.1,2611.4,0.03828948]
[1750057085008,10.8024,2612.3,2611.4,0.03828948]
[1750057085206,10.8024,2612.3,2611.6,3.82898727]
[1750057085207,0.99673571,2612.2,2611.6,3.82898727]
[1750057085408,0.99673571,2612.2,2611.6,10.50498727]
[1750057085598,0.03820085,2612.2,2611.4,0.74391895]
[1750057085803,0.03820085,2612.2,2611.5,8.512]
[1750057085998,0.03820085,2612.2,2611.6,3.82904237]
[1750057086211,0.03820085,2612.2,2611.7,3.82884583]
[1750057086523,0.03820085,2612.2,2611.8,3.82876957]
[1750057087725,0.03820085,2612.2,2611.7,3.82888202]
[1750057087924,0.03820085,2612.2,2611.8,3.82863637]
[1750057088227,0.41383824,2612.2,2611.8,3.82863637]
[1750057088519,0.03820085,2612.2,2611.9,3.82862575]
[1750057088722,0.03820085,2612.2,2611.5,8.512]
[1750057088926,0.03820085,2612.2,2611.8,3.82872644]
[1750057089339,0.03820085,2612.2,2611.8,8.503]
[1750057089626,0.03820085,2612.2,2611.8,12.32477603]
[1750057089855,0.03820085,2612.2,2611.8,12.32277603]
[1750057090058,10.0,2612.5,2612.1,3.82828849]
[1750057090241,0.03820085,2612.4,2612.0,3.82842709]
[1750057090446,0.03820085,2612.4,2611.9,0.8433835]
[1750057090447,0.38297904,2612.4,2611.9,0.8433835]
[1750057090627,0.03820085,2612.6,2611.9,0.8433835]
[1750057090837,0.03820085,2612.6,2612.2,3.82811149]
[1750057091061,0.03820085,2612.6,2612.2,10.48811149]
[1750057091257,0.03820085,2612.6,2612.2,6.66]
[1750057091423,1.5058134,2612.6,2612.1,3.82828809]
[1750057091623,1.5058134,2612.6,2612.2,8.496]
[1750057092160,0.03820085,2612.6,2612.0,3.82845176]
[1750057092315,10.0,2612.5,2612.1,8.493]
[1750057092516,0.37500669,2612.6,2612.1,8.493]
[1750057092732,0.7947,2612.4,2611.1,0.02]
[1750057092931,0.7947,2611.8,2611.2,3.82956426]
[1750057093160,0.7947,2611.8,2611.3,3.82939]
[1750057093461,0.7947,2611.8,2611.4,3.82928442]
[1750057093672,0.7947,2611.8,2611.4,12.34828442]
[1750057093979,0.7947,2611.8,2611.5,3.82921399]
[1750057094477,0.1912,2611.6,2611.5,3.82921399]
[1750057094624,0.1912,2611.6,2611.5,12.34621399]
[1750057094830,0.7947,2611.8,2611.5,12.34621399]
[1750057095176,0.7667,2612.2,2611.9,3.82854742]
[1750057095492,0.1912,2612.1,2612.0,3.82848392]
[1750057097033,0.1912,2612.1,2611.9,8.51]
[1750057097235,0.1912,2612.1,2612.0,3.82848392]
[1750057097735,0.1912,2612.1,2612.0,12.33748392]
[1750057097961,0.767,2612.4,2612.1,3.82823124]
[1750057098145,0.1912,2612.3,2612.1,3.82826209]
[1750057098329,0.1912,2612.3,2612.0,12.3374481]
[1750057098535,0.1912,2612.3,2612.1,3.82821141]
[1750057098776,0.1912,2612.3,2612.1,3.82833735]
[1750057099076,0.1912,2612.3,2612.2,3.82819079]
[1750057099435,11.18623839,2612.7,2612.2,3.82816768]
[1750057099436,1.18623839,2612.7,2612.2,3.82816768]
[1750057099640,0.1912,2612.5,2612.3,3.82802541]
[1750057099861,0.1912,2612.5,2612.4,6.662]
[1750057100431,0.1912,2612.5,2612.0,7.10853794]
[1750057100687,0.1912,2612.5,2612.2,3.82818776]
[1750057101037,0.1912,2612.5,2612.1,10.48931694]
[1750057101237,0.1912,2612.5,2612.3,3.82803792]
[1750057101748,0.1912,2612.5,2612.4,3.82789771]
[1750057101948,0.762,2612.0,2611.1,0.02]
[1750057102155,0.03820085,2611.9,2611.2,0.8117]
[1750057102478,0.03820085,2611.9,2611.4,3.82936355]
[1750057102652,0.03820085,2611.9,2611.5,1.836]
[1750057104073,0.03820085,2611.9,2611.4,3.82936355]
[1750057104278,0.03820085,2611.9,2611.6,8.524]
[1750057104941,10.03820085,2611.9,2611.6,8.524]
[1750057105237,10.0,2611.9,2611.6,8.524]
[1750057106836,10.0,2611.9,2611.6,1.837]
[1750057107777,10.762,2612.0,2611.6,1.837]
[1750057107937,0.03820085,2611.9,2611.6,1.837]
[1750057109271,0.03820085,2611.9,2611.6,8.5]
[1750057109468,0.03820085,2611.9,2611.4,3.82935277]
[1750057109668,0.03820085,2611.9,2611.5,8.499]
[1750057110505,0.03820085,2611.9,2611.5,12.32820278]
[1750057110705,0.03820085,2611.9,2611.5,8.499]
[1750057111078,0.03820085,2611.9,2611.6,8.499]
[1750057111873,0.1912,2611.7,2611.6,8.499]
[1750057112291,0.1912,2611.7,2611.6,12.3280703]
[1750057112596,0.1912,2611.7,2611.6,3.8290703]
[1750057112804,0.762,2612.0,2611.6,12.3350703]
[1750057113002,0.1912,2611.8,2611.6,12.3350703]
[1750057113166,0.1912,2611.8,2611.7,3.82892368]
[1750057113969,0.1912,2611.8,2611.6,12.335009]
[1750057114863,0.1912,2611.8,2611.7,3.82892368]
[1750057118119,0.1912,2612.0,2611.8,3.82877708]
[1750057118415,0.1912,2612.0,2611.9,6.633]
[1750057119606,0.1912,2612.0,2611.9,10.46163049]
[1750057120010,0.1912,2612.0,2611.9,6.627]
[1750057120708,0.1912,2612.0,2611.9,8.477]
[1750057122125,0.1912,2612.0,2611.8,3.82869939]
[1750057122303,0.1912,2612.0,2611.9,8.467]
[1750057122620,0.1912,2612.0,2611.9,12.29563049]
[1750057123001,0.1912,2612.0,2611.9,3.82863049]
[1750057123206,0.1912,2612.0,2611.9,8.465]
[1750057125552,0.1912,2612.0,2611.5,0.1912]
[1750057125714,0.8128,2611.5,2611.2,6.611]
[1750057125924,0.8128,2611.7,2611.4,3.82928435]
[1750057126229,0.8128,2611.7,2611.3,3.82944611]
[1750057126426,5.03765406,2611.4,2611.1,0.02]
[1750057126736,0.03820085,2611.3,2611.1,0.02]
[1750057126939,3.86772762,2611.3,2611.1,0.02]
[1750057127143,0.03820085,2611.3,2611.1,0.02]
[1750057128673,0.42940367,2611.3,2611.1,0.02]
[1750057131657,0.39120282,2611.3,2611.1,0.02]
[1750057131955,0.8128,2611.5,2611.1,3.8496904]
[1750057132154,0.8128,2611.5,2611.1,0.02]
[1750057132456,0.8128,2611.5,2611.1,3.84972494]
[1750057132611,0.80500085,2611.7,2611.2,6.602]
[1750057134332,10.0,2611.6,2611.2,6.602]
[1750057134536,0.03820085,2611.5,2611.2,6.602]
[1750057135055,0.7668,2611.7,2611.2,6.602]
[1750057135259,0.80500085,2611.7,2611.2,10.43154234]
[1750057135423,0.80500085,2611.7,2611.2,8.23014628]
[1750057135622,0.1912,2611.5,2611.4,3.82934748]
[1750057137454,0.1912,2611.8,2611.5,3.82911034]
[1750057137833,0.1912,2611.8,2611.6,8.447]
[1750057138032,0.1912,2611.8,2611.5,3.82911034]
[1750057138744,0.1912,2611.8,2611.6,8.445]
[1750057139171,0.1912,2611.8,2611.6,12.27405636]
[1750057139465,0.1912,2611.8,2611.7,6.588]
[1750057141475,0.1912,2611.8,2611.6,3.82905966]
[1750057141646,0.1912,2611.8,2611.7,6.577]
[1750057143066,0.1912,2611.8,2611.7,6.575]
[1750057146853,0.1912,2611.8,2611.6,3.82903747]
[1750057147060,0.1912,2611.8,2611.7,6.561]
[1750057147474,0.1912,2611.8,2611.7,6.558]
[1750057147669,0.1912,2611.8,2611.6,5.63803747]
[1750057147670,0.1912,2611.8,2611.6,3.82903747]
[1750057147955,0.1912,2611.8,2611.7,6.555]
[1750057149682,0.1912,2611.8,2611.7,10.38392368]
[1750057150186,0.1912,2611.8,2611.7,6.555]
[1750057151446,0.1912,2611.8,2611.7,10.38392368]
[1750057151956,0.1912,2611.8,2611.7,10.37692368]
[1750057152153,0.1912,2611.8,2611.7,6.548]
[1750057152583,0.1912,2611.8,2611.7,10.37692368]
[1750057153886,0.1912,2611.8,2611.7,3.82892368]
[1750057154046,0.1912,2611.8,2611.7,10.36292368]
[1750057154767,0.1912,2611.8,2611.7,3.82892368]
[1750057155003,0.1912,2611.8,2611.7,12.16892368]
[1750057156687,0.1912,2612.0,2611.9,3.82851967]
[1750057156887,0.1912,2612.0,2611.9,10.35551967]
[1750057158663,0.7861,2612.6,2611.9,13.98492668]
[1750057158880,0.7861,2612.6,2612.2,3.82810287]
[1750057158881,0.1912,2612.3,2612.2,3.82810287]
[1750057159094,0.1912,2612.3,2612.2,10.34810287]
[1750057165812,0.1912,2612.3,2612.2,3.82810287]
[1750057166115,0.1912,2612.3,2612.2,10.33210287]
[1750057166712,0.37473839,2612.7,2612.6,3.82760468]
[1750057167015,0.1912,2612.7,2612.6,10.32760468]
[1750057170981,0.7954,2613.0,2612.6,6.5]
[1750057171319,0.1912,2612.9,2612.8,3.82731169]
[1750057171513,0.1912,2612.9,2612.8,10.31531169]
[1750057172619,0.1912,2612.9,2612.8,6.488]
[1750057172815,0.1912,2612.9,2612.8,10.31531169]
[1750057173392,0.1912,2612.9,2612.8,6.488]
[1750057173593,0.1912,2612.9,2612.8,10.31531169]
[1750057175099,0.1912,2612.9,2612.8,6.488]
[1750057175922,0.1912,2612.9,2612.8,10.31531169]
[1750057176321,0.1912,2612.9,2612.8,6.476]
[1750057176501,0.1912,2612.9,2612.8,10.30331169]
[1750057177013,0.1912,2612.9,2612.8,6.476]
[1750057178027,0.1912,2612.9,2612.8,6.471]
[1750057179725,0.7513,2613.8,2612.8,13.39390562]
[1750057179887,0.1912,2613.2,2613.1,3.82687229]
[1750057180085,0.1912,2613.6,2613.5,3.82618966]
[1750057180422,0.1912,2613.6,2613.5,10.29318966]
[1750057180625,4.58970155,2613.4,2613.2,6.467]
[1750057180831,10.0,2613.3,2613.1,6.47]
[1750057181026,10.0,2613.3,2612.9,3.82706419]
[1750057181328,10.0,2613.3,2613.0,6.47]
[1750057181535,10.0,2613.3,2612.9,3.82709212]
[1750057181829,0.1912,2613.0,2612.9,3.82709212]
[1750057182196,0.1912,2613.0,2612.9,10.29409212]
[1750057182731,0.1912,2613.0,2612.9,3.82709212]
[1750057182919,0.1912,2613.0,2612.9,10.29109212]
[1750057183318,0.1912,2613.0,2612.9,3.82709212]
[1750057183619,0.1912,2613.0,2612.9,10.29109212]
[1750057184033,0.1912,2613.0,2612.9,10.29009212]
[1750057185076,0.1912,2613.0,2610.7,4.59344551]
[1750057185077,3.82861025,2612.0,2610.7,4.59344551]
[1750057185205,10.42106188,2611.9,2611.1,3.88796396]
[1750057185410,0.7532,2611.5,2611.1,0.02]
[1750057185608,0.03820085,2611.4,2611.1,0.02]
[1750057185918,0.79140085,2611.5,2611.1,3.84971558]
[1750057186099,1.12910268,2611.5,2611.1,10.42271558]
[1750057187253,1.12910268,2611.5,2611.1,3.84973568]
[1750057187453,1.12910268,2611.5,2611.2,6.57]
[1750057187659,1.12910268,2611.5,2611.1,0.02]
[1750057187660,5.03789796,2611.3,2611.1,0.02]
[1750057187828,5.03789796,2611.3,2611.1,6.585]
[1750057188022,0.03820085,2611.4,2611.1,6.585]
[1750057188976,0.03820085,2611.4,2611.1,0.02]
[1750057189290,0.03820085,2611.4,2611.1,6.586]
[1750057191467,5.03789796,2611.3,2611.1,0.02]
[1750057191831,5.07609881,2611.3,2611.1,0.02]
[1750057192744,5.03789796,2611.3,2611.1,0.02]
[1750057193544,0.03820085,2611.2,2611.1,0.02]
[1750057193944,0.03820085,2611.2,2610.1,0.02]
[1750057193945,0.55,2610.8,2610.1,0.02]
[1750057194159,20.20657524,2610.3,2610.1,0.02]
[1750057194358,14.38112405,2610.2,2610.1,0.02]
[1750057194930,15.21162405,2610.2,2610.1,0.02]
[1750057195139,19.02667059,2610.2,2610.1,0.02]
[1750057195471,24.06456855,2610.2,2610.1,0.02]
[1750057195671,10.8305,2610.2,2610.1,0.02]
[1750057195972,3.8302205,2610.9,2610.1,0.02]
[1750057195973,0.1912,2610.3,2610.1,0.02]
[1750057196384,0.1912,2610.3,2610.1,3.85118258]
[1750057196586,0.1912,2610.3,2610.2,3.83112405]
[1750057196993,0.37590268,2611.5,2610.3,3.83097728]
[1750057197291,5.03789796,2611.2,2610.8,3.83011118]
[1750057197477,0.36663152,2611.4,2610.9,3.82641319]
[1750057197682,5.03789796,2611.2,2610.9,3.81897961]
[1750057197876,5.03789796,2611.4,2611.1,3.82978789]
[1750057198077,5.03789796,2611.4,2611.0,3.82994413]
[1750057198282,5.03789796,2611.4,2611.1,3.82969134]
[1750057198787,0.4247467,2611.5,2610.9,3.86836002]
[1750057198788,0.38654585,2611.5,2611.2,3.82956551]
[1750057198986,0.03820085,2611.6,2611.2,3.82956551]
[1750057199192,0.03820085,2611.7,2610.9,6.615]
[1750057199395,0.03820085,2611.7,2611.2,3.82954714]
[1750057200154,0.03820085,2611.7,2610.9,7.35547]
[1750057200398,0.03820085,2611.7,2611.2,3.829655]
[1750057201184,0.03820085,2611.7,2611.4,3.82934611]
[1750057201385,0.42714279,2611.7,2611.5,3.82918203]
[1750057201581,0.87150085,2612.0,2611.3,0.7982]
[1750057201786,1.08715009,2611.9,2611.3,4.62763948]
[1750057201987,0.03820085,2611.8,2611.3,4.62763948]
[1750057202185,10.03820085,2611.8,2611.1,8.439]
[1750057202496,10.0,2611.8,2611.1,12.26866164]
[1750057202663,0.03820085,2611.7,2611.3,3.8294859]
[1750057202996,0.03820085,2611.7,2611.2,3.82958936]
[1750057203565,0.03820085,2611.7,2611.3,3.82949616]
[1750057204407,10.0,2611.8,2611.5,3.82913484]
[1750057204615,0.8333,2612.0,2611.5,3.82909278]
[1750057204917,3.04379612,2612.0,2611.2,3.86794591]
[1750057205217,0.81880085,2612.3,2611.8,3.82870099]
[1750057205365,8.2622568,2612.3,2611.7,3.82888454]
[1750057205565,1.2090215,2612.2,2611.8,3.82876023]
[1750057205770,1.2090215,2612.2,2611.8,3.82876377]
[1750057206363,1.2090215,2612.2,2611.6,4.60716522]
[1750057206571,1.2090215,2612.2,2611.8,3.82877472]
[1750057206794,1.24722235,2612.2,2611.8,3.82877472]
[1750057206998,0.1912,2612.0,2611.6,7.3671]
[1750057207306,0.39020537,2612.3,2611.6,11.1961367]
[1750057207642,0.1912,2612.2,2611.8,3.82877708]
[1750057207908,0.1912,2612.2,2612.1,3.82833735]
[1750057208106,0.797,2612.8,2612.1,7.40247798]
[1750057208403,0.38453133,2612.8,2612.6,3.82749778]
[1750057208610,7.44345595,2612.7,2612.2,3.82818576]
[1750057208766,7.4816568,2612.7,2612.1,4.60244737]
[1750057208962,1.13089802,2612.6,2612.2,3.82818816]
[1750057209207,1.16909887,2612.6,2612.2,3.82818816]
[1750057209604,0.02,2612.9,2612.4,3.8278011]
[1750057209790,0.02,2612.9,2612.5,3.82773186]
[1750057210219,0.02,2612.9,2612.4,6.596]
[1750057210397,0.02,2612.9,2612.6,3.82753015]
[1750057210597,0.02,2612.9,2612.7,3.82738142]
[1750057210769,0.02,2612.9,2612.7,3.82740432]
[1750057211810,0.02,2612.9,2612.7,3.82738511]
[1750057212194,0.02,2612.9,2612.5,3.82763247]
[1750057212371,17.46345595,2612.9,2612.5,6.592]
[1750057212566,11.84941568,2612.9,2612.4,10.41885743]
[1750057212909,0.02,2612.9,2612.5,3.82769716]
[1750057213070,0.02,2612.9,2612.4,10.41882285]
[1750057213467,0.02,2612.9,2612.5,3.8277445]
[1750057214007,0.02,2612.9,2612.4,6.591]
[1750057214306,0.02,2612.9,2612.4,10.41888734]
[1750057215067,0.02,2612.9,2611.6,11.041]
[1750057215068,10.8152,2612.6,2611.6,11.041]
[1750057215298,10.8152,2612.6,2612.0,3.828409]
[1750057215630,10.8152,2612.6,2612.1,3.866606]
[1750057216181,10.8152,2612.6,2612.1,0.03827863]
[1750057216513,0.8152,2612.6,2612.2,3.82818856]
[1750057217079,0.8152,2612.6,2612.1,3.86657504]
[1750057217516,0.8057,2612.8,2612.3,3.82794167]
[1750057217812,0.8057,2612.8,2612.4,3.86608398]
[1750057218016,0.1912,2612.7,2612.4,3.86608398]
[1750057218519,0.1912,2612.7,2612.5,3.8276678]
[1750057219220,0.1912,2612.7,2612.4,3.82787303]
[1750057219397,0.1912,2612.7,2612.5,3.82773603]
[1750057220117,0.40768721,2612.9,2612.6,3.82760468]
[1750057220323,0.1912,2612.8,2612.7,3.82735634]
[1750057221917,0.1912,2612.8,2612.6,0.03827039]
[1750057222829,0.41208721,2612.9,2612.5,3.82770429]
[1750057222997,0.1912,2612.9,2612.5,3.82770429]
[1750057223203,0.1912,2612.9,2612.6,3.82758634]
[1750057223730,0.1912,2612.9,2612.6,3.82759412]
[1750057226024,0.1912,2612.9,2612.7,3.82742598]
[1750057226224,0.1912,2612.9,2612.6,3.86582244]
[1750057226424,0.1912,2612.9,2612.7,0.38658224]
[1750057226730,0.1912,2612.9,2612.7,3.82735986]
[1750057226930,13.82659437,2613.3,2612.7,3.82735986]
[1750057226931,7.85963509,2614.7,2613.8,3.82584742]
[1750057227101,0.42377708,2614.6,2613.8,0.7509]
[1750057227428,0.42377708,2614.6,2613.2,10.03824916]
[1750057227429,0.8193,2614.3,2613.6,3.82603027]
[1750057227618,10.0,2614.2,2613.6,12.23805299]
[1750057227803,10.0,2614.2,2613.7,3.82596241]
[1750057227999,0.8193,2614.3,2613.8,3.82584742]
[1750057228205,0.1912,2614.0,2613.7,3.82593807]
[1750057228606,0.1912,2614.0,2613.7,1.816]
[1750057228836,0.1912,2614.0,2613.8,3.82584742]
[1750057229130,0.1912,2614.0,2613.7,5.64194917]
[1750057229431,0.1912,2614.0,2613.7,8.412]
[1750057229601,0.1912,2614.0,2613.7,12.23798291]
[1750057229801,10.0,2614.1,2613.7,8.407]
[1750057230020,0.2112,2613.9,2613.7,8.407]
[1750057232392,0.02,2613.9,2613.8,3.82584742]
[1750057232592,0.02,2613.9,2613.8,3.86410244]
[1750057232992,0.02,2614.9,2614.8,3.82438427]
[1750057233190,0.02,2615.9,2614.8,23.4409227]
[1750057233392,0.02,2615.9,2615.5,3.82328]
[1750057233625,7.44345595,2615.7,2615.0,6.672]
[1750057233939,7.44345595,2615.7,2614.8,10.49837422]
[1750057233940,10.8231,2615.6,2614.8,10.49837422]
[1750057234234,0.1912,2615.0,2614.8,10.49837422]
[1750057234395,0.1912,2615.0,2614.8,6.674]
[1750057234596,0.1912,2615.0,2614.8,10.49834591]
[1750057235194,0.1912,2615.0,2614.8,6.674]
[1750057235510,0.1912,2615.0,2614.8,3.82430634]
[1750057235697,0.1912,2615.0,2614.8,10.49830634]
[1750057236100,0.1912,2615.0,2614.9,3.82423802]
[1750057236296,0.1912,2615.0,2614.5,0.1912]
[1750057236610,0.1912,2614.8,2614.6,10.48860946]
[1750057237309,0.1912,2614.8,2614.3,0.1912]
[1750057237511,0.1912,2614.8,2614.5,3.82480538]
[1750057237724,0.1912,2614.8,2614.4,6.663]
[1750057237725,0.1912,2614.8,2614.6,3.82464587]
[1750057238038,0.1912,2614.8,2614.7,3.82453053]
[1750057238448,1.46462137,2615.5,2614.7,3.82453053]
[1750057238449,0.02,2615.9,2614.7,1.53564209]
[1750057238592,0.02,2615.9,2614.9,3.82423802]
[1750057238793,0.02,2615.9,2614.9,3.82419769]
[1750057238997,0.02,2615.9,2615.0,8.707]
[1750057239269,1.1022,2615.9,2615.7,3.82293453]
[1750057239537,0.02,2615.9,2615.0,3.82400488]
[1750057239698,0.02,2615.9,2615.5,3.82325933]
[1750057239899,0.02,2615.9,2615.6,3.82308918]
[1750057240711,0.02,2615.9,2615.5,10.5972953]
[1750057240906,0.02,2615.9,2614.7,0.76874209]
[1750057241107,0.02,2615.9,2615.3,3.82361771]
[1750057241342,0.02,2615.9,2615.3,10.59161771]
[1750057241964,0.02,2615.9,2615.4,3.82346702]
[1750057242166,0.02,2615.9,2615.3,10.59160411]
[1750057242850,0.02,2615.9,2615.4,3.82350486]
[1750057243054,1.48446429,2615.9,2615.3,10.59163728]
[1750057243223,1.48446429,2615.9,2615.4,3.82349892]
[1750057244554,1.48446429,2615.9,2615.3,10.59164384]
[1750057244715,1.48446429,2615.9,2615.4,0.03823326]
[1750057244916,0.02,2615.9,2615.5,3.82330929]
[1750057245516,1.11725029,2616.4,2615.3,6.768]
[1750057245517,0.18,2617.1,2615.6,0.79773094]
[1750057245743,0.18,2616.8,2615.7,0.3191431]
[1750057245946,0.8296,2616.7,2615.8,8.723]
[1750057246151,0.8296,2616.7,2616.2,3.8223169]
[1750057246317,0.18,2616.6,2616.2,10.6153169]
[1750057247648,0.18,2616.6,2616.1,10.60646227]
[1750057247835,0.66311242,2616.6,2616.1,10.60646227]
[1750057248522,0.1904,2616.5,2616.1,10.60641764]
[1750057249156,0.1904,2616.5,2616.1,10.60645031]
[1750057250316,10.18,2616.4,2616.2,6.776]
[1750057250517,0.1904,2616.2,2615.9,0.3191187]
[1750057250750,0.3704,2616.2,2616.0,6.771]
[1750057253461,0.8177,2616.1,2615.9,0.3191187]
[1750057253665,10.1904,2616.0,2615.6,6.756]
[1750057253823,11.69145866,2616.0,2615.6,6.756]
[1750057254318,15.51409851,2616.0,2615.5,0.1904]
[1750057254520,15.51409851,2616.0,2615.3,11.8096]
[1750057254521,0.1904,2615.7,2615.3,15.04098311]
[1750057254718,0.1904,2615.7,2615.4,6.753]
[1750057254970,3.82306995,2615.7,2615.3,6.753]
[1750057255140,10.0,2615.4,2614.9,6.751]
[1750057255336,3.8234272,2615.5,2614.8,10.57531194]
[1750057255553,10.0,2615.4,2614.8,10.89456488]
[1750057255928,3.82358939,2615.4,2614.8,7.07025294]
[1750057256458,3.82358939,2615.4,2614.8,10.57537121]
[1750057256663,1.9846464,2615.4,2614.8,10.57537121]
[1750057256818,1.9846464,2615.4,2614.9,6.751]
[1750057257024,5.80824438,2615.4,2614.9,6.751]
[1750057257348,3.82379896,2615.3,2614.7,6.745]
[1750057257559,3.82379896,2615.3,2614.7,10.56950672]
[1750057257860,1.9631928,2615.3,2614.8,3.82436638]
[1750057258367,1.9631928,2615.3,2614.7,10.56946512]
[1750057258566,1.9631928,2615.3,2614.8,3.82437629]
[1750057259243,0.8173,2615.6,2615.1,3.82386961]
[1750057259427,0.8173,2615.6,2615.1,10.57086961]
[1750057259769,0.39140118,2616.5,2615.8,0.7926]
[1750057260064,0.39140118,2616.5,2616.3,3.82212194]
[1750057260226,0.02,2616.9,2615.8,0.7926]
[1750057260426,0.7729,2616.7,2615.9,12.88676496]
[1750057260666,1.23432692,2616.7,2615.9,9.0641187]
[1750057260868,0.7729,2616.7,2616.1,3.82238476]
[1750057261222,0.7729,2616.7,2616.1,4.14147906]
[1750057261442,0.7729,2616.7,2616.2,3.82232375]
[1750057263267,10.7729,2616.7,2616.1,10.95355952]
[1750057263443,0.7729,2616.7,2616.2,3.8223282]
[1750057263774,1.07729,2616.6,2616.2,3.8223282]
[1750057264132,1.07729,2616.6,2616.1,10.95357807]
[1750057264465,0.7729,2616.7,2616.2,3.82223778]
[1750057265130,0.1904,2616.4,2616.1,10.95349024]
[1750057265356,0.1904,2616.4,2616.1,10.95352157]
[1750057265868,0.1904,2616.4,2616.2,3.82233357]
[1750057266064,0.1904,2616.4,2616.1,7.1310943]
[1750057266228,0.1904,2616.4,2616.2,3.82226003]
[1750057266424,0.1904,2616.4,2616.1,7.1310943]
[1750057267164,0.1904,2616.4,2616.1,0.3190943]
[1750057267342,0.1904,2616.4,2616.1,10.92756641]
[1750057268345,0.1904,2616.4,2616.1,7.1050943]
[1750057268547,0.7729,2616.7,2616.0,6.779]
[1750057268548,13.82186251,2616.6,2616.0,6.779]
[1750057268734,0.1904,2616.2,2616.0,10.60161629]
[1750057268936,0.1904,2616.2,2616.1,3.82248385]
[1750057269364,0.1904,2616.2,2616.0,10.60156179]
[1750057269564,0.1904,2616.2,2616.0,6.779]
[1750057269870,0.1904,2616.2,2616.1,0.8032]
[1750057270070,0.02,2616.9,2616.8,4.37146132]
[1750057270227,0.02,2617.9,2617.0,0.8032]
[1750057270426,0.02,2617.9,2617.2,3.82079994]
[1750057270659,0.50304463,2617.9,2617.2,3.82087727]
[1750057270856,0.50304463,2617.9,2617.4,3.82057591]
[1750057271127,0.1904,2617.7,2617.5,3.82043382]
[1750057271982,0.1904,2617.7,2617.4,3.82052078]
[1750057272551,0.1904,2617.7,2617.5,3.82040519]
[1750057273350,0.1904,2617.7,2617.4,3.82051852]
[1750057275093,0.1904,2617.7,2617.3,3.82068875]
[1750057276083,0.1904,2617.7,2617.2,10.87522544]
[1750057276277,0.1904,2617.6,2617.2,10.68482544]
[1750057276959,0.1904,2617.6,2617.3,3.82071047]
[1750057277158,0.1904,2617.6,2617.1,0.1904]
[1750057277495,0.1904,2617.6,2617.2,6.829]
[1750057277690,0.1904,2617.6,2617.3,3.82071326]
[1750057277890,0.1904,2617.6,2617.2,10.6498209]
[1750057278592,0.1904,2617.6,2617.2,3.8208209]
[1750057278797,3.82023592,2617.7,2617.2,6.821]
[1750057278962,0.1904,2617.4,2617.2,6.821]
[1750057281165,0.1904,2617.4,2617.3,0.8132]
[1750057281367,0.02,2617.9,2617.3,0.8132]
[1750057281368,0.02,2617.9,2617.8,12.62665747]
[1750057281607,3.81920871,2618.4,2617.8,0.8132]
[1750057281780,10.0,2618.0,2617.5,0.7808]
[1750057281983,1.40381565,2617.9,2617.1,3.82102327]
[1750057282303,0.2185677,2618.1,2617.2,6.933]
[1750057282466,0.2185677,2618.1,2617.6,3.82021072]
[1750057282670,0.2185677,2618.1,2617.6,10.75121072]
[1750057282906,0.2185677,2618.1,2617.6,3.82021072]
[1750057283096,0.2185677,2618.1,2617.6,10.74721072]
[1750057283296,1.62236764,2618.1,2617.6,10.74721072]
[1750057283496,1.62236764,2618.1,2617.7,3.82009901]
[1750057284024,0.2185677,2618.1,2617.6,6.927]
[1750057284319,0.2185677,2618.1,2617.4,10.747568]
[1750057284610,10.0,2618.0,2617.4,10.747568]
[1750057285270,10.2185677,2618.1,2617.4,6.927]
[1750057285472,14.03820294,2618.1,2617.5,6.915]
[1750057285671,5.60552497,2618.0,2617.5,6.915]
[1750057286503,5.60555115,2618.0,2617.5,6.912]
[1750057286709,3.81991238,2617.9,2617.5,6.912]
[1750057287092,3.81975749,2618.0,2617.5,6.912]
[1750057287488,0.59966321,2618.1,2618.0,3.8197097]
[1750057287489,0.2185677,2618.1,2618.0,3.8197097]
[1750057287820,0.02,2618.9,2618.0,10.12806272]
[1750057288028,0.02,2618.9,2618.8,3.81854284]
[1750057288324,0.2,2618.9,2618.8,3.81854284]
[1750057288616,0.2,2618.9,2618.8,3.85672217]
[1750057289286,0.2,2618.9,2618.8,3.81854284]
[1750057290917,0.2,2618.9,2618.7,11.60926822]
[1750057291273,0.2,2618.9,2618.8,0.1904]
[1750057292816,0.57527188,2618.9,2618.8,0.1904]
[1750057293022,0.57527188,2618.9,2618.8,7.1704]
[1750057293201,0.2,2618.9,2618.8,7.1704]
[1750057293759,0.1904,2619.3,2619.2,3.81795968]
[1750057293883,0.02,2619.9,2619.3,0.783]
[1750057294083,0.02,2619.9,2619.4,7.42069229]
[1750057294326,0.02,2619.9,2619.5,0.31868013]
[1750057294483,0.02,2619.9,2619.5,4.13614461]
[1750057294687,0.02,2619.9,2619.6,3.81734718]
[1750057295102,0.02,2619.9,2619.5,4.13615559]
[1750057295414,0.02,2619.9,2619.5,4.13616995]
[1750057295620,0.02,2619.9,2619.6,3.81737665]
[1750057296001,0.02,2619.9,2619.5,4.13616135]
[1750057296793,0.02,2619.9,2619.6,3.81736573]
[1750057297123,0.02,2619.9,2619.7,0.03816822]
[1750057298739,0.02,2619.9,2619.6,7.085]
[1750057298942,0.02,2619.9,2619.5,0.31868013]
[1750057299302,0.40368159,2619.9,2619.5,0.31868013]
[1750057299519,3.81609796,2620.5,2619.5,0.31868013]